[Event "3rd Vergani Cup 2018"]
[Site "Montebelluna"]
[Date "2019.01.02"]
[Round "?"]
[White "Can, Melih Kaan"]
[Black "Alok Sinha"]
[Result "0-1"]
[WhiteElo "2225"]
[BlackElo "2187"]
[PlyCount "44"]
[EventDate "2018.12.27"]
[EventType "swiss"]
[EventCountry "ITA"]
[TimeControl "5400+30"]
[WhiteClock "1:02:03"]
[BlackClock "0:31:39"]

1. e4 {[%emt 0:11:05]} c5 {[%emt 0:00:00]} 2. Nf3 {[%emt 0:00:04]} d6 {[%emt 0:00:00]} 3. c3 {[%emt 0:00:03]} Nf6 {[%emt 0:00:00]} 4. h3 {[%emt 0:00:06]} Nc6 {[%emt 0:01:42]} 5. Bd3 {[%emt 0:00:09]} e5 {[%emt 0:02:05]} 6. Bc2 {[%emt 0:00:06]} Be7 {[%emt 0:06:46]} 7. O-O {[%emt 0:01:02]} g5 {[%emt 0:04:04]} 8. Nxg5 {[%emt 0:25:03]} Rg8 {[%emt 0:00:45]} 9. d4 {[%emt 0:00:08]} h6 {[%emt 0:07:27]} 10. Nxf7 {[%emt 0:03:02]} Qd7 {[%emt 0:09:00]} 11. Nxh6 {[%emt 0:19:20]} Rxg2+ {[%emt 0:02:19]} 12. Kxg2 {[%emt 0:00:19]} Qxh3+ {[%emt 0:00:05]} 13. Kg1 {[%emt 0:00:05]} Ng4 {[%emt 0:01:01]} 14. Nxg4 {[%emt 0:00:16]} Bxg4 {[%emt 0:00:06]} 15. f3 {[%emt 0:01:58]} Qg3+ {[%emt 0:00:43]} 16. Kh1 {[%emt 0:00:02]} O-O-O {[%emt 0:01:06]} 17. Bh6 {[%emt 0:00:27]} Rh8 {[%emt 0:01:06]} 18. Qd2 {[%emt 0:01:08]} Bxf3+ {[%emt 0:00:14]} 19. Rxf3 {[%emt 0:00:10]} Qxf3+ {[%emt 0:00:03]} 20. Qg2 {[%emt 0:03:32]} Rxh6+ {[%emt 0:00:07]} 21. Kg1 {[%emt 0:00:05]} Qe3+ {[%emt 0:00:05]} 22. Qf2 {[%emt 0:01:11]} Rh1+ {[%emt 0:00:13]} 0-1

[Event "3rd Vergani Cup 2018"]
[Site "Montebelluna"]
[Date "2019.01.02"]
[Round "?"]
[White "Alok Sinha"]
[Black "Orfini, Nicolo`"]
[Result "1/2-1/2"]
[WhiteElo "2187"]
[BlackElo "2156"]
[PlyCount "40"]
[EventDate "2018.12.27"]
[EventType "swiss"]
[EventCountry "ITA"]
[TimeControl "5400+30"]
[WhiteClock "1:07:30"]
[BlackClock "0:48:05"]

1. Nf3 {[%emt 0:00:00]} d6 {[%emt 0:09:55]} 2. d4 {[%emt 0:01:08]} Nf6 {[%emt 0:00:17]} 3. Nc3 {[%emt 0:00:24]} Nbd7 {[%emt 0:00:33]} 4. e4 {[%emt 0:00:06]} e5 {[%emt 0:00:05]} 5. Bc4 {[%emt 0:00:14]} Be7 {[%emt 0:00:04]} 6. O-O {[%emt 0:00:09]} O-O {[%emt 0:00:04]} 7. Re1 {[%emt 0:00:18]} Nb6 {[%emt 0:01:08]} 8. Bf1 {[%emt 0:01:58]} exd4 {[%emt 0:00:46]} 9. Nxd4 {[%emt 0:02:03]} Nfd7 {[%emt 0:00:21]} 10. Nd5 {[%emt 0:05:23]} Nxd5 {[%emt 0:01:04]} 11. exd5 {[%emt 0:00:03]} Bf6 {[%emt 0:00:15]} 12. g3 {[%emt 0:03:34]} Ne5 {[%emt 0:07:21]} 13. Bg2 {[%emt 0:04:43]} Bg4 {[%emt 0:01:15]} 14. f3 {[%emt 0:01:04]} Bd7 {[%emt 0:00:15]} 15. f4 {[%emt 0:04:26]} Bg4 {[%emt 0:00:32]} 16. Qd2 {[%emt 0:00:20]} Nc4 {[%emt 0:01:04]} 17. Qd3 {[%emt 0:01:06]} Nb6 {[%emt 0:00:15]} 18. h3 {[%emt 0:04:48]} Bd7 {[%emt 0:00:09]} 19. Kh2 {[%emt 0:09:57]} Qc8 {[%emt 0:02:40]} 20. c4 {[%emt 0:10:11]} Na4 {[%emt 0:04:27]} 1/2-1/2

[Event "3rd Vergani Cup 2018"]
[Site "Montebelluna"]
[Date "2019.01.02"]
[Round "?"]
[White "Orfini, Nicolo`"]
[Black "Gallana, Marco"]
[Result "1/2-1/2"]
[WhiteElo "2156"]
[BlackElo "2247"]
[PlyCount "57"]
[EventDate "2018.12.27"]
[EventType "swiss"]
[EventCountry "ITA"]
[TimeControl "5400+30"]
[WhiteClock "0:02:15"]
[BlackClock "0:01:27"]

1. e4 {[%emt 0:19:15]} c5 {[%emt 0:00:00]} 2. c3 {[%emt 0:00:11]} d5 {[%emt 0:00:33]} 3. exd5 {[%emt 0:00:05]} Nf6 {[%emt 0:00:10]} 4. d4 {[%emt 0:00:07]} Nxd5 {[%emt 0:00:17]} 5. Nf3 {[%emt 0:00:06]} e6 {[%emt 0:00:23]} 6. Bd3 {[%emt 0:00:15]} cxd4 {[%emt 0:00:39]} 7. cxd4 {[%emt 0:00:18]} Bb4+ {[%emt 0:00:31]} 8. Bd2 {[%emt 0:01:20]} Bxd2+ {[%emt 0:00:41]} 9. Qxd2 {[%emt 0:00:11]} Nc6 {[%emt 0:02:49]} 10. O-O {[%emt 0:01:43]} O-O {[%emt 0:00:39]} 11. Nc3 {[%emt 0:01:55]} Nce7 {[%emt 0:02:16]} 12. Rfe1 {[%emt 0:13:37]} b6 {[%emt 0:01:22]} 13. Re5 {[%emt 0:02:23]} Bb7 {[%emt 0:14:41]} 14. Nxd5 {[%emt 0:13:36]} Bxd5 {[%emt 0:13:54]} 15. Rh5 {[%emt 0:11:00]} Ng6 {[%emt 0:03:14]} 16. Ne5 {[%emt 0:02:28]} Qf6 {[%emt 0:08:44]} 17. Qe3 {[%emt 0:14:18]} Rfd8 {[%emt 0:14:46]} 18. a3 {[%emt 0:01:34]} Rac8 {[%emt 0:03:15]} 19. Ng4 {[%emt 0:06:22]} Qe7 {[%emt 0:15:06]} 20. Re1 {[%emt 0:00:22]} Qc7 {[%emt 0:03:24]} 21. Ne5 {[%emt 0:01:12]} Qe7 {[%emt 0:13:06]} 22. f4 {[%emt 0:02:19]} Qf6 {[%emt 0:00:00]} 23. Rf1 {[%emt 0:02:58]} Bb7 {[%emt 0:00:00]} 24. Bb1 {[%emt 0:04:25]} Ba6 {[%emt 0:01:30]} 25. Bd3 {[%emt 0:00:00]} Bxd3 {[%emt 0:00:00]} 26. Qxd3 {[%emt 0:00:00]} h6 {[%emt 0:00:00]} 27. Qe4 {[%emt 0:00:00]} Nxe5 {[%emt 0:00:00]} 28. fxe5 {[%emt 0:00:00]} Qg6 {[%emt 0:00:00]} 29. Qxg6 {[%emt 0:01:03]} 1/2-1/2